[Event "Early-Titled-Tuesday-Blitz-April-23-2024"]
[Site "Chess.com"]
[Date "2024.04.23"]
[Round "6"]
[White "a_kandil"]
[Black "blitzking1729"]
[Result "0-1"]
[WhiteElo "2528"]
[BlackElo "2766"]
[TimeControl "180+1"]
[EndTime "9:08:23 PDT"]
[Termination "blitzking1729 won by resignation"]

1. e4 {[%clk 0:02:59.4]} 1... e5 {[%clk 0:02:53.7]} 2. Nf3 {[%clk 0:02:59]} 2...
Nc6 {[%clk 0:02:53.5]} 3. Bc4 {[%clk 0:02:59.3]} 3... Nf6 {[%clk 0:02:50.7]} 4.
d3 {[%clk 0:02:58.7]} 4... Bc5 {[%clk 0:02:49.5]} 5. c3 {[%clk 0:02:58.6]} 5...
d6 {[%clk 0:02:48.6]} 6. O-O {[%clk 0:02:58.2]} 6... h6 {[%clk 0:02:48.4]} 7. a4
{[%clk 0:02:53.8]} 7... a6 {[%clk 0:02:42.9]} 8. b4 {[%clk 0:02:52.9]} 8... Ba7
{[%clk 0:02:41.3]} 9. Nbd2 {[%clk 0:02:46.9]} 9... O-O {[%clk 0:02:40.9]} 10. h3
{[%clk 0:02:45.8]} 10... Ne7 {[%clk 0:02:40.7]} 11. Re1 {[%clk 0:02:45.6]} 11...
Ng6 {[%clk 0:02:40.7]} 12. Nf1 {[%clk 0:02:45.6]} 12... Be6 {[%clk 0:02:40.4]}
13. Bxe6 {[%clk 0:02:41.5]} 13... fxe6 {[%clk 0:02:39.8]} 14. Be3 {[%clk
0:02:40.3]} 14... Kh7 {[%clk 0:02:38.5]} 15. c4 {[%clk 0:02:37.2]} 15... a5
{[%clk 0:02:36.1]} 16. b5 {[%clk 0:02:27.6]} 16... Bxe3 {[%clk 0:02:33.3]} 17.
fxe3 {[%clk 0:02:26.5]} 17... b6 {[%clk 0:02:22.8]} 18. Ra2 {[%clk 0:02:19.2]}
18... Qe7 {[%clk 0:02:22]} 19. g4 {[%clk 0:02:11.8]} 19... d5 {[%clk 0:02:15]}
20. cxd5 {[%clk 0:01:52.8]} 20... exd5 {[%clk 0:02:14.6]} 21. Ng3 {[%clk
0:01:52.9]} 21... Rad8 {[%clk 0:02:10.8]} 22. Qe2 {[%clk 0:01:52.9]} 22... dxe4
{[%clk 0:02:07]} 23. dxe4 {[%clk 0:01:53.8]} 23... Qb4 {[%clk 0:02:02]} 24. Rc1
{[%clk 0:01:17.4]} 24... Nxe4 {[%clk 0:01:56.2]} 25. Nf5 {[%clk 0:01:16.3]}
25... Nc3 {[%clk 0:01:51.5]} 26. Qf2 {[%clk 0:00:50.7]} 26... Nxa2 {[%clk
0:01:49.6]} 27. Rxc7 {[%clk 0:00:51.2]} 27... Rxf5 {[%clk 0:01:00.2]} 28. gxf5
{[%clk 0:00:52.1]} 28... Qb1+ {[%clk 0:01:00.6]} 29. Kg2 {[%clk 0:00:42.5]}
29... Qxf5 {[%clk 0:00:58.6]} 30. Qxa2 {[%clk 0:00:42.5]} 30... Rf8 {[%clk
0:00:47.7]} 31. Qe2 {[%clk 0:00:37]} 31... Qxf3+ {[%clk 0:00:37.5]} 32. Qxf3
{[%clk 0:00:36.2]} 32... Nh4+ {[%clk 0:00:38]} 33. Kg3 {[%clk 0:00:35.5]} 33...
Nxf3 {[%clk 0:00:38]} 34. Rc6 {[%clk 0:00:36.1]} 34... Ng5 {[%clk 0:00:37]} 35.
Rxb6 {[%clk 0:00:34.9]} 35... Ne4+ {[%clk 0:00:33.5]} 36. Kg2 {[%clk 0:00:35]}
36... Rf2+ {[%clk 0:00:32.7]} 37. Kg1 {[%clk 0:00:35.6]} 37... Ra2 {[%clk
0:00:32.7]} 38. Re6 {[%clk 0:00:36.2]} 38... Ng5 {[%clk 0:00:32.1]} 39. Ra6
{[%clk 0:00:35.4]} 39... Nxh3+ {[%clk 0:00:31.6]} 40. Kf1 {[%clk 0:00:35.5]}
40... Rxa4 {[%clk 0:00:32.3]} 41. b6 {[%clk 0:00:35.9]} 41... Rb4 {[%clk
0:00:31.1]} 42. Rxa5 {[%clk 0:00:36.1]} 42... Rxb6 {[%clk 0:00:31.4]} 43. Rxe5
{[%clk 0:00:36.8]} 43... Ng5 {[%clk 0:00:31.1]} 44. Kf2 {[%clk 0:00:36.9]} 44...
Rf6+ {[%clk 0:00:30.3]} 45. Kg2 {[%clk 0:00:36.3]} 45... Re6 {[%clk 0:00:30.8]}
46. Rf5 {[%clk 0:00:34.6]} 46... Rxe3 {[%clk 0:00:30]} 0-1

[Event "Early-Titled-Tuesday-Blitz-April-23-2024"]
[Site "Chess.com"]
[Date "2024.04.23"]
[Round "6"]
[White "Maria_Elayza"]
[Black "RamonManon0g"]
[Result "0-1"]
[WhiteElo "2168"]
[BlackElo "2456"]
[TimeControl "180+1"]
[EndTime "9:08:23 PDT"]
[Termination "RamonManon0g won by resignation"]

1. d4 {[%clk 0:03:00.9]} 1... Nf6 {[%clk 0:02:39.7]} 2. Bf4 {[%clk 0:02:55.7]}
2... g6 {[%clk 0:02:39.3]} 3. e3 {[%clk 0:02:55.1]} 3... d6 {[%clk 0:02:39.7]}
4. Nf3 {[%clk 0:02:54.5]} 4... Bg7 {[%clk 0:02:40.3]} 5. Be2 {[%clk 0:02:54.3]}
5... O-O {[%clk 0:02:38.5]} 6. O-O {[%clk 0:02:54.8]} 6... Nh5 {[%clk
0:02:38.1]} 7. Bg3 {[%clk 0:02:54.5]} 7... Nxg3 {[%clk 0:02:37.6]} 8. hxg3
{[%clk 0:02:55.3]} 8... c5 {[%clk 0:02:37.7]} 9. c3 {[%clk 0:02:53.1]} 9... Qb6
{[%clk 0:02:36.7]} 10. Qb3 {[%clk 0:02:51.6]} 10... Be6 {[%clk 0:02:36.7]} 11.
Qxb6 {[%clk 0:02:50.8]} 11... axb6 {[%clk 0:02:37.6]} 12. a3 {[%clk 0:02:50.4]}
12... Nc6 {[%clk 0:02:36.9]} 13. Nbd2 {[%clk 0:02:50.2]} 13... cxd4 {[%clk
0:02:29.9]} 14. exd4 {[%clk 0:02:49]} 14... Na5 {[%clk 0:02:26.3]} 15. Rfe1
{[%clk 0:02:46.8]} 15... Rac8 {[%clk 0:02:21.8]} 16. Ng5 {[%clk 0:02:45.4]}
16... Bf5 {[%clk 0:02:20.5]} 17. Bf3 {[%clk 0:02:37.1]} 17... Rfe8 {[%clk
0:02:16.7]} 18. Be4 {[%clk 0:02:33.6]} 18... Bg4 {[%clk 0:02:10.8]} 19. Bf3
{[%clk 0:02:31.1]} 19... Bd7 {[%clk 0:02:06.3]} 20. Be4 {[%clk 0:02:25.2]} 20...
Bh6 {[%clk 0:02:05]} 21. Ngf3 {[%clk 0:02:24.4]} 21... e5 {[%clk 0:01:54.7]} 22.
dxe5 {[%clk 0:02:21.2]} 22... dxe5 {[%clk 0:01:55.6]} 23. Bd5 {[%clk 0:02:08.8]}
23... Bc6 {[%clk 0:01:50.1]} 24. Ba2 {[%clk 0:01:58.8]} 24... e4 {[%clk
0:01:49.3]} 25. b4 {[%clk 0:01:51.3]} 25... exf3 {[%clk 0:01:43.2]} 26. Nf1
{[%clk 0:01:25.1]} 26... fxg2 {[%clk 0:01:38]} 27. Ne3 {[%clk 0:01:21.9]} 27...
Bf3 {[%clk 0:01:36.3]} 28. bxa5 {[%clk 0:01:20.8]} 28... bxa5 {[%clk 0:01:36.4]}
29. Nxg2 {[%clk 0:01:17.1]} 29... Bd2 {[%clk 0:01:17.3]} 30. Rxe8+ {[%clk
0:01:05.7]} 30... Rxe8 {[%clk 0:01:18.2]} 31. Rb1 {[%clk 0:01:01.5]} 31... Re2
{[%clk 0:01:14.3]} 32. Bc4 {[%clk 0:00:44.6]} 32... Re7 {[%clk 0:01:08.6]} 33.
Rb3 {[%clk 0:00:43.5]} 33... a4 {[%clk 0:00:41.1]} 34. Rb4 {[%clk 0:00:38.6]}
34... Bc6 {[%clk 0:00:40.6]} 35. Bb5 {[%clk 0:00:26.1]} 35... Bxc3 {[%clk
0:00:39.6]} 36. Rb1 {[%clk 0:00:25.9]} 36... Bf3 {[%clk 0:00:24]} 37. Bxa4
{[%clk 0:00:20.3]} 37... Be4 {[%clk 0:00:19.4]} 38. Re1 {[%clk 0:00:19.2]} 38...
Bxe1 {[%clk 0:00:19]} 39. Nxe1 {[%clk 0:00:18.9]} 39... Bc6 {[%clk 0:00:19.2]}
40. Bxc6 {[%clk 0:00:18.1]} 40... Rxe1+ {[%clk 0:00:19.2]} 41. Kg2 {[%clk
0:00:18.3]} 41... bxc6 {[%clk 0:00:20.1]} 0-1

[Event "Early-Titled-Tuesday-Blitz-April-23-2024"]
[Site "Chess.com"]
[Date "2024.04.23"]
[Round "6"]
[White "Witik"]
[Black "masnyszachistaaa"]
[Result "1-0"]
[WhiteElo "2766"]
[BlackElo "2577"]
[TimeControl "180+1"]
[EndTime "9:08:24 PDT"]
[Termination "Witik won by checkmate"]

1. d4 {[%clk 0:02:59.2]} 1... Nf6 {[%clk 0:02:56.3]} 2. Nf3 {[%clk 0:02:58.6]}
2... g6 {[%clk 0:02:55.6]} 3. c4 {[%clk 0:02:55.1]} 3... Bg7 {[%clk 0:02:55.4]}
4. g3 {[%clk 0:02:55.7]} 4... O-O {[%clk 0:02:55.4]} 5. Bg2 {[%clk 0:02:56.2]}
5... d6 {[%clk 0:02:44.8]} 6. O-O {[%clk 0:02:54.4]} 6... Nbd7 {[%clk
0:02:39.3]} 7. b3 {[%clk 0:02:46.6]} 7... a5 {[%clk 0:02:32]} 8. Nc3 {[%clk
0:02:25]} 8... c6 {[%clk 0:02:29.4]} 9. Bb2 {[%clk 0:02:17.7]} 9... Qc7 {[%clk
0:02:28.3]} 10. Qc2 {[%clk 0:02:08.9]} 10... e5 {[%clk 0:02:23.7]} 11. Rfd1
{[%clk 0:02:05.4]} 11... Rd8 {[%clk 0:02:23.7]} 12. c5 {[%clk 0:01:51]} 12...
dxc5 {[%clk 0:01:37.8]} 13. dxe5 {[%clk 0:01:50.3]} 13... Ne8 {[%clk 0:01:37.7]}
14. Ne4 {[%clk 0:01:43.9]} 14... Nxe5 {[%clk 0:01:34.9]} 15. Bxe5 {[%clk
0:01:32.4]} 15... Rxd1+ {[%clk 0:01:34.3]} 16. Rxd1 {[%clk 0:01:31.4]} 16...
Bxe5 {[%clk 0:01:35.2]} 17. Nxe5 {[%clk 0:01:21]} 17... Qxe5 {[%clk 0:01:36.1]}
18. Rd8 {[%clk 0:01:20.8]} 18... Bh3 {[%clk 0:00:59.6]} 19. Rd1 {[%clk
0:00:40.7]} 19... Bxg2 {[%clk 0:00:55.8]} 20. Kxg2 {[%clk 0:00:41.6]} 20... b6
{[%clk 0:00:56.1]} 21. Qd3 {[%clk 0:00:34.7]} 21... Nc7 {[%clk 0:00:51.3]} 22.
f4 {[%clk 0:00:32]} 22... Qe7 {[%clk 0:00:44.5]} 23. Ng5 {[%clk 0:00:26.3]}
23... Nd5 {[%clk 0:00:42.4]} 24. e4 {[%clk 0:00:25.6]} 24... Nb4 {[%clk
0:00:37.1]} 25. Qd7 {[%clk 0:00:24.1]} 25... Re8 {[%clk 0:00:27.6]} 26. a3
{[%clk 0:00:21.3]} 26... Nc2 {[%clk 0:00:26.5]} 27. Qxe7 {[%clk 0:00:17.7]}
27... Rxe7 {[%clk 0:00:27.4]} 28. Rd8+ {[%clk 0:00:18.1]} 28... Kg7 {[%clk
0:00:27.4]} 29. e5 {[%clk 0:00:17.9]} 29... Ne3+ {[%clk 0:00:04.8]} 30. Kf3
{[%clk 0:00:17.7]} 30... Nf5 {[%clk 0:00:05.3]} 31. Ne4 {[%clk 0:00:17.7]} 31...
Nd4+ {[%clk 0:00:05.2]} 32. Ke3 {[%clk 0:00:15.8]} 32... Nxb3 {[%clk 0:00:02.7]}
33. Nf6 {[%clk 0:00:15.7]} 33... c4 {[%clk 0:00:02.4]} 34. g4 {[%clk 0:00:12.5]}
34... g5 {[%clk 0:00:01.3]} 35. Rg8+ {[%clk 0:00:12.3]} 35... Kh6 {[%clk
0:00:01.3]} 36. fxg5# {[%clk 0:00:13]} 1-0

[Event "Early-Titled-Tuesday-Blitz-April-23-2024"]
[Site "Chess.com"]
[Date "2024.04.23"]
[Round "6"]
[White "klimkoj"]
[Black "MagnusCarlsen"]
[Result "0-1"]
[WhiteElo "2919"]
[BlackElo "3219"]
[TimeControl "180+1"]
[EndTime "9:08:28 PDT"]
[Termination "MagnusCarlsen won by resignation"]

1. e4 {[%clk 0:03:00.9]} 1... c6 {[%clk 0:02:48.2]} 2. Nf3 {[%clk 0:03:00.4]}
2... d6 {[%clk 0:02:45.7]} 3. d4 {[%clk 0:03:00]} 3... Nf6 {[%clk 0:02:43.5]} 4.
Bd3 {[%clk 0:02:59.8]} 4... e5 {[%clk 0:02:42.4]} 5. dxe5 {[%clk 0:02:55.1]}
5... dxe5 {[%clk 0:02:42.3]} 6. O-O {[%clk 0:02:54.5]} 6... Nbd7 {[%clk
0:02:42]} 7. Nbd2 {[%clk 0:02:41.7]} 7... Qc7 {[%clk 0:02:26.2]} 8. a4 {[%clk
0:02:41.4]} 8... Bc5 {[%clk 0:02:24.5]} 9. a5 {[%clk 0:02:38]} 9... O-O {[%clk
0:02:24]} 10. c3 {[%clk 0:02:36.8]} 10... Rb8 {[%clk 0:02:20.9]} 11. Qe2 {[%clk
0:02:35.8]} 11... b5 {[%clk 0:02:20.5]} 12. axb6 {[%clk 0:02:35.3]} 12... axb6
{[%clk 0:02:21.4]} 13. b4 {[%clk 0:02:27]} 13... Be7 {[%clk 0:02:21.3]} 14. Nc4
{[%clk 0:02:21.8]} 14... b5 {[%clk 0:02:19.7]} 15. Ne3 {[%clk 0:02:22.2]} 15...
Rd8 {[%clk 0:02:12.2]} 16. Nf5 {[%clk 0:01:57.3]} 16... Nb6 {[%clk 0:02:11.8]}
17. Nxe7+ {[%clk 0:01:55.1]} 17... Qxe7 {[%clk 0:02:12.7]} 18. Be3 {[%clk
0:01:53.5]} 18... Bg4 {[%clk 0:02:12.1]} 19. Bc5 {[%clk 0:01:49.3]} 19... Qe6
{[%clk 0:02:11]} 20. h3 {[%clk 0:01:41.3]} 20... Bxf3 {[%clk 0:02:10.5]} 21.
Qxf3 {[%clk 0:01:42.2]} 21... Na4 {[%clk 0:02:10.9]} 22. Be2 {[%clk 0:01:29.5]}
22... Nxc5 {[%clk 0:02:10.2]} 23. bxc5 {[%clk 0:01:30.4]} 23... Qe7 {[%clk
0:02:00.5]} 24. Qe3 {[%clk 0:01:18.2]} 24... Ra8 {[%clk 0:02:00.8]} 25. Rxa8
{[%clk 0:01:09.9]} 25... Rxa8 {[%clk 0:02:00.5]} 26. Rd1 {[%clk 0:01:10]} 26...
Rd8 {[%clk 0:02:01.1]} 27. Ra1 {[%clk 0:01:06.9]} 27... g6 {[%clk 0:02:01.2]}
28. Ra6 {[%clk 0:01:04]} 28... Rc8 {[%clk 0:02:01.3]} 29. Bg4 {[%clk 0:01:02.9]}
29... Rc7 {[%clk 0:02:01.2]} 30. Qh6 {[%clk 0:00:59.2]} 30... Qe8 {[%clk
0:01:29.8]} 31. Qg5 {[%clk 0:00:51.5]} 31... Nxe4 {[%clk 0:01:26.9]} 32. Qe3
{[%clk 0:00:48.6]} 32... Nf6 {[%clk 0:01:27.5]} 33. Bf3 {[%clk 0:00:45.4]} 33...
Kg7 {[%clk 0:01:27.6]} 34. g4 {[%clk 0:00:43.8]} 34... h6 {[%clk 0:01:27]} 35.
h4 {[%clk 0:00:43.5]} 35... Qe6 {[%clk 0:01:11.7]} 36. g5 {[%clk 0:00:44]} 36...
hxg5 {[%clk 0:01:12.5]} 37. hxg5 {[%clk 0:00:44.9]} 37... Nd7 {[%clk 0:01:12.7]}
38. Bg2 {[%clk 0:00:35.9]} 38... Qe7 {[%clk 0:01:02.5]} 39. Rxc6 {[%clk
0:00:32.7]} 39... Nxc5 {[%clk 0:01:03]} 40. f4 {[%clk 0:00:22.5]} 40... e4
{[%clk 0:00:44.6]} 41. Qd4+ {[%clk 0:00:15.6]} 41... Kh7 {[%clk 0:00:44.8]} 42.
Rd6 {[%clk 0:00:11.6]} 42... Ne6 {[%clk 0:00:35]} 43. Qe5 {[%clk 0:00:05.9]}
43... Rc5 {[%clk 0:00:34.2]} 44. Rd5 {[%clk 0:00:04.5]} 44... Rxd5 {[%clk
0:00:34.6]} 45. Qxd5 {[%clk 0:00:04.8]} 45... Nxf4 {[%clk 0:00:34.6]} 46. Qxe4
{[%clk 0:00:05.5]} 46... Qxg5 {[%clk 0:00:34.1]} 47. Kf2 {[%clk 0:00:04.2]}
47... Qxg2+ {[%clk 0:00:34.2]} 48. Qxg2 {[%clk 0:00:04.7]} 48... Nxg2 {[%clk
0:00:35.1]} 49. Kxg2 {[%clk 0:00:05.1]} 49... f5 {[%clk 0:00:35.7]} 0-1

[Event "Early-Titled-Tuesday-Blitz-April-23-2024"]
[Site "Chess.com"]
[Date "2024.04.23"]
[Round "6"]
[White "Dewarfd"]
[Black "vedantgoswami"]
[Result "0-1"]
[WhiteElo "2103"]
[BlackElo "2338"]
[TimeControl "180+1"]
[EndTime "9:08:32 PDT"]
[Termination "vedantgoswami won on time"]

1. c4 {[%clk 0:03:00.9]} 1... Nf6 {[%clk 0:02:54.2]} 2. Nc3 {[%clk 0:02:59.2]}
2... e6 {[%clk 0:02:53.4]} 3. e4 {[%clk 0:02:59.1]} 3... d5 {[%clk 0:02:50.6]}
4. e5 {[%clk 0:02:55.2]} 4... d4 {[%clk 0:02:49.8]} 5. exf6 {[%clk 0:02:55.2]}
5... dxc3 {[%clk 0:02:49.4]} 6. fxg7 {[%clk 0:02:52.9]} 6... cxd2+ {[%clk
0:02:47.8]} 7. Qxd2 {[%clk 0:02:52.6]} 7... Qxd2+ {[%clk 0:02:46.2]} 8. Bxd2
{[%clk 0:02:53.5]} 8... Bxg7 {[%clk 0:02:45.7]} 9. O-O-O {[%clk 0:02:52]} 9...
Bd7 {[%clk 0:02:31]} 10. Bd3 {[%clk 0:02:49]} 10... Bc6 {[%clk 0:02:30.1]} 11.
f3 {[%clk 0:02:47]} 11... Nd7 {[%clk 0:02:28.4]} 12. Nh3 {[%clk 0:02:33.9]}
12... Ne5 {[%clk 0:02:26.2]} 13. Be2 {[%clk 0:02:30.8]} 13... Rd8 {[%clk
0:02:18.7]} 14. Nf4 {[%clk 0:02:03.1]} 14... h5 {[%clk 0:02:15]} 15. h4 {[%clk
0:01:46.4]} 15... Bh6 {[%clk 0:02:14.5]} 16. Nh3 {[%clk 0:01:34.6]} 16... Bxd2+
{[%clk 0:01:58.9]} 17. Rxd2 {[%clk 0:01:35.5]} 17... Ke7 {[%clk 0:01:48.6]} 18.
Rxd8 {[%clk 0:01:27.9]} 18... Kxd8 {[%clk 0:01:46.3]} 19. Nf4 {[%clk 0:01:19.1]}
19... Ke7 {[%clk 0:01:43.1]} 20. Re1 {[%clk 0:00:59.4]} 20... Kf6 {[%clk
0:01:39.8]} 21. b3 {[%clk 0:00:47.3]} 21... a5 {[%clk 0:01:38.1]} 22. Nh3 {[%clk
0:00:31.9]} 22... Be8 {[%clk 0:01:32.8]} 23. Ng5 {[%clk 0:00:30.5]} 23... Bd7
{[%clk 0:01:28.9]} 24. Ne4+ {[%clk 0:00:29.5]} 24... Ke7 {[%clk 0:01:28.3]} 25.
Nc5 {[%clk 0:00:28.9]} 25... Bc8 {[%clk 0:01:27]} 26. Bf1 {[%clk 0:00:24.4]}
26... Nc6 {[%clk 0:01:24.6]} 27. Bd3 {[%clk 0:00:20.3]} 27... Rg8 {[%clk
0:01:23.9]} 28. Re2 {[%clk 0:00:17.3]} 28... Nd4 {[%clk 0:01:21.6]} 29. Rf2
{[%clk 0:00:16.6]} 29... b6 {[%clk 0:01:20.2]} 30. Ne4 {[%clk 0:00:14.8]} 30...
f6 {[%clk 0:01:18.7]} 31. Kd2 {[%clk 0:00:12.2]} 31... Bb7 {[%clk 0:01:18.2]}
32. Kc3 {[%clk 0:00:09.2]} 32... c5 {[%clk 0:01:18.2]} 33. Nd2 {[%clk
0:00:07.3]} 33... f5 {[%clk 0:01:14.3]} 34. Nf1 {[%clk 0:00:06.6]} 34... Kf6
{[%clk 0:01:14.1]} 35. Ne3 {[%clk 0:00:06.1]} 35... Bc6 {[%clk 0:01:11.7]} 36.
Nc2 {[%clk 0:00:04.6]} 36... e5 {[%clk 0:01:08]} 37. Ne3 {[%clk 0:00:02.2]}
37... Rd8 {[%clk 0:01:04.6]} 38. a3 {[%clk 0:00:01.8]} 38... Ke6 {[%clk
0:00:58.2]} 39. b4 {[%clk 0:00:02.5]} 39... axb4+ {[%clk 0:00:57.1]} 40. axb4
{[%clk 0:00:03.4]} 40... cxb4+ {[%clk 0:00:56.5]} 41. Kxb4 {[%clk 0:00:04.3]}
41... f4 {[%clk 0:00:53.1]} 42. Nc2 {[%clk 0:00:03.2]} 42... Nxf3 {[%clk
0:00:50.7]} 43. gxf3 {[%clk 0:00:03]} 43... Rxd3 {[%clk 0:00:50.5]} 44. Ne1
{[%clk 0:00:02.9]} 44... Rd1 {[%clk 0:00:49.6]} 45. Nc2 {[%clk 0:00:01.7]} 45...
Rb1+ {[%clk 0:00:49.1]} 46. Kc3 {[%clk 0:00:01.7]} 46... Kf5 {[%clk 0:00:48]}
47. Rg2 {[%clk 0:00:02.3]} 47... Bxf3 {[%clk 0:00:46.6]} 48. Rg5+ {[%clk
0:00:02.4]} 48... Ke6 {[%clk 0:00:45.5]} 49. Nb4 {[%clk 0:00:02]} 49... Bg4
{[%clk 0:00:43.1]} 50. Nd5 {[%clk 0:00:01.9]} 50... f3 {[%clk 0:00:42.3]} 0-1

[Event "Early-Titled-Tuesday-Blitz-April-23-2024"]
[Site "Chess.com"]
[Date "2024.04.23"]
[Round "6"]
[White "jk13"]
[Black "snowlord"]
[Result "0-1"]
[WhiteElo "2687"]
[BlackElo "2917"]
[TimeControl "180+1"]
[EndTime "9:08:33 PDT"]
[Termination "snowlord won by resignation"]

1. e4 {[%clk 0:02:57.4]} 1... c5 {[%clk 0:03:00]} 2. c3 {[%clk 0:02:56.6]} 2...
Nf6 {[%clk 0:02:57.9]} 3. e5 {[%clk 0:02:57.1]} 3... Nd5 {[%clk 0:02:58.6]} 4.
Bc4 {[%clk 0:02:57.8]} 4... Nb6 {[%clk 0:02:57]} 5. Bb3 {[%clk 0:02:58.3]} 5...
c4 {[%clk 0:02:53.1]} 6. Bc2 {[%clk 0:02:57.8]} 6... d6 {[%clk 0:02:51.6]} 7.
exd6 {[%clk 0:02:57.2]} 7... Qxd6 {[%clk 0:02:51]} 8. Nf3 {[%clk 0:02:58.1]}
8... Nc6 {[%clk 0:02:50.5]} 9. Qe2 {[%clk 0:02:53.7]} 9... Bg4 {[%clk 0:02:39]}
10. Na3 {[%clk 0:02:53.6]} 10... Bxf3 {[%clk 0:01:55]} 11. Qxf3 {[%clk
0:02:52.5]} 11... Qe5+ {[%clk 0:01:47]} 12. Kf1 {[%clk 0:02:48.1]} 12... e6
{[%clk 0:01:40.5]} 13. b3 {[%clk 0:02:48]} 13... Bxa3 {[%clk 0:01:14.1]} 14.
Bxa3 {[%clk 0:02:48.9]} 14... Rd8 {[%clk 0:01:14.4]} 15. Qe2 {[%clk 0:02:31.8]}
15... Qa5 {[%clk 0:01:07.9]} 16. Bb2 {[%clk 0:02:28.6]} 16... Qc5 {[%clk
0:01:03.4]} 17. a4 {[%clk 0:01:55.8]} 17... Qd5 {[%clk 0:01:00.3]} 18. Be4
{[%clk 0:01:18.7]} 18... Qxd2 {[%clk 0:00:59.8]} 19. a5 {[%clk 0:01:17.7]} 19...
Nxa5 {[%clk 0:00:51.3]} 20. Rxa5 {[%clk 0:00:54.5]} 20... Qd1+ {[%clk
0:00:51.4]} 21. Qe1 {[%clk 0:00:55.2]} 21... Qxb3 {[%clk 0:00:46.8]} 22. Bf3
{[%clk 0:00:15.8]} 22... Qxb2 {[%clk 0:00:45.5]} 23. Rxa7 {[%clk 0:00:16.5]}
23... O-O {[%clk 0:00:33.7]} 24. Rxb7 {[%clk 0:00:17]} 24... Rb8 {[%clk
0:00:29.4]} 25. Rxb8 {[%clk 0:00:16.5]} 25... Rxb8 {[%clk 0:00:30.3]} 26. g3
{[%clk 0:00:13.9]} 26... Na4 {[%clk 0:00:29.6]} 27. Qe5 {[%clk 0:00:12.6]} 27...
g6 {[%clk 0:00:18.7]} 28. Kg2 {[%clk 0:00:12.6]} 28... Qb5 {[%clk 0:00:15.8]}
29. Qe3 {[%clk 0:00:12]} 29... Qc5 {[%clk 0:00:14.7]} 30. Qf4 {[%clk 0:00:11.5]}
30... Rf8 {[%clk 0:00:07]} 31. Qd2 {[%clk 0:00:09]} 31... Qa3 {[%clk 0:00:06.8]}
32. Rc1 {[%clk 0:00:06.8]} 32... Nc5 {[%clk 0:00:07.2]} 33. Rc2 {[%clk
0:00:05.9]} 33... Nd3 {[%clk 0:00:07.7]} 34. Qe3 {[%clk 0:00:05.8]} 34... Qb3
{[%clk 0:00:07.4]} 35. Rd2 {[%clk 0:00:06]} 35... Qxc3 {[%clk 0:00:07.6]} 36.
Be4 {[%clk 0:00:06.9]} 36... Rd8 {[%clk 0:00:05.9]} 37. h4 {[%clk 0:00:07.8]}
37... h5 {[%clk 0:00:05.4]} 38. Qg5 {[%clk 0:00:07.3]} 38... Ne1+ {[%clk
0:00:04.4]} 39. Kf1 {[%clk 0:00:07.1]} 39... Qxd2 {[%clk 0:00:05.1]} 0-1

[Event "Early-Titled-Tuesday-Blitz-April-23-2024"]
[Site "Chess.com"]
[Date "2024.04.23"]
[Round "6"]
[White "bazar-wokzal"]
[Black "JoliyRoger"]
[Result "1-0"]
[WhiteElo "2596"]
[BlackElo "2411"]
[TimeControl "180+1"]
[EndTime "9:08:33 PDT"]
[Termination "bazar-wokzal won on time"]

1. e4 {[%clk 0:03:00.9]} 1... c6 {[%clk 0:02:53.6]} 2. d4 {[%clk 0:03:00.1]}
2... d5 {[%clk 0:02:53.5]} 3. f3 {[%clk 0:03:00.3]} 3... dxe4 {[%clk 0:02:35.5]}
4. fxe4 {[%clk 0:03:00.2]} 4... e5 {[%clk 0:02:35.9]} 5. Nf3 {[%clk 0:02:59.2]}
5... Be6 {[%clk 0:02:35.7]} 6. c3 {[%clk 0:02:58.3]} 6... Nd7 {[%clk 0:02:24.2]}
7. Ng5 {[%clk 0:02:49.5]} 7... Ngf6 {[%clk 0:02:01.3]} 8. Nxe6 {[%clk 0:02:43]}
8... fxe6 {[%clk 0:02:00.1]} 9. Bc4 {[%clk 0:02:43.6]} 9... exd4 {[%clk
0:01:56.5]} 10. cxd4 {[%clk 0:02:41.3]} 10... e5 {[%clk 0:01:54.5]} 11. O-O
{[%clk 0:02:29.4]} 11... Qb6 {[%clk 0:01:50.8]} 12. Be3 {[%clk 0:02:10.9]} 12...
exd4 {[%clk 0:01:50.4]} 13. Bg5 {[%clk 0:02:03.9]} 13... O-O-O {[%clk 0:01:23]}
14. Nd2 {[%clk 0:01:51]} 14... h6 {[%clk 0:01:10.3]} 15. Bh4 {[%clk 0:01:48.9]}
15... Bd6 {[%clk 0:01:07.6]} 16. Be6 {[%clk 0:01:43.1]} 16... Qc7 {[%clk
0:01:07.2]} 17. Nf3 {[%clk 0:01:28]} 17... Kb8 {[%clk 0:01:04.6]} 18. Kh1 {[%clk
0:01:24.8]} 18... Nc5 {[%clk 0:00:53.9]} 19. Bf5 {[%clk 0:01:21.6]} 19... g5
{[%clk 0:00:52.4]} 20. Bf2 {[%clk 0:01:16.8]} 20... Ncxe4 {[%clk 0:00:45.5]} 21.
Bxd4 {[%clk 0:01:12.2]} 21... c5 {[%clk 0:00:28]} 22. Bxe4 {[%clk 0:01:05.4]}
22... cxd4 {[%clk 0:00:24.5]} 23. Qxd4 {[%clk 0:01:01.2]} 23... Nxe4 {[%clk
0:00:17.1]} 24. Qxe4 {[%clk 0:01:00.3]} 24... Rhe8 {[%clk 0:00:17.1]} 25. Qg4
{[%clk 0:00:54.5]} 25... Qb6 {[%clk 0:00:16.7]} 26. b3 {[%clk 0:00:49]} 26... a6
{[%clk 0:00:16.8]} 27. Rae1 {[%clk 0:00:46.2]} 27... Rf8 {[%clk 0:00:16]} 28.
Re6 {[%clk 0:00:42.7]} 28... Qc7 {[%clk 0:00:14.6]} 29. Rxh6 {[%clk 0:00:40.4]}
29... Bf4 {[%clk 0:00:13.6]} 30. g3 {[%clk 0:00:36.5]} 30... Rd3 {[%clk
0:00:04.8]} 31. gxf4 {[%clk 0:00:30.8]} 31... Rxf4 {[%clk 0:00:03.3]} 32. Rh8+
{[%clk 0:00:30.7]} 32... Ka7 {[%clk 0:00:02.9]} 33. Qg1+ {[%clk 0:00:30.4]}
33... b6 {[%clk 0:00:02.6]} 34. Qg2 {[%clk 0:00:18.3]} 1-0